Workbook

Sheet نظرة عامة على الحفل
B3: نظرة عامة على الحفل
B6: الحدث | D6: ملخص الضيوف | H6: ="الردود على الدعوات المعلقة: "&OutstandingRSVPs -> الردود على الدعوات المعلقة: 2
B7: عيد ميلاد الجدة الخامس والسبعين | D7: نظرة عامة للرد على الدعوة | F7: تكلفة الضيف | H7: مبلغ الميزانية
D8: الضيوف المؤكدين | E8: الإجمالي المؤكد | F8: الطعام | G8: غير ذلك | H8: الإجمالي
B9: ‎التاريخ | D9: البالغون | E9: =SUMIF(GuestTable[هل ستحضر؟],"=نعم",GuestTable[البالغون]) -> 26 | F9: =FoodTable[[#Totals],[تكلفة البالغ]] -> 12.69 ر.س.‏ | G9: =EssentialCostPerGuest -> 18.70 ر.س.‏ | H9: =(AttendeeSummary[[#This Row],[الطعام]]+AttendeeSummary[[#This Row],[غير ذلك]])*AdultTotal -> 816.03 ر.س.‏
B10: 2011-06-14 | D10: الأطفال | E10: =SUMIF(GuestTable[هل ستحضر؟],"=نعم",GuestTable[الأطفال]) -> 20 | F10: =FoodTable[[#Totals],[تكلفة الطفل]] -> 7.25 ر.س.‏ | G10: =EssentialCostPerGuest -> 18.70 ر.س.‏ | H10: =(AttendeeSummary[[#This Row],[الطعام]]+AttendeeSummary[[#This Row],[غير ذلك]])*AdultTotal -> 674.66 ر.س.‏
D11: الإجمالي | E11: =SUBTOTAL(109,AttendeeSummary[الإجمالي المؤكد]) -> 46 | F11: ="المتوسط "&TEXT(SUBTOTAL(101,AttendeeSummary[الطعام]),"###0.00 ر.س.;[أحمر]( ###0.00 ر.س.)") -> المتوسط 9.97 ر.س.‏ | G11: ="المتوسط "&TEXT(SUBTOTAL(101,AttendeeSummary[غير ذلك]),"###0.00 ر.س.;[أحمر]( ###0.00 ر.س.)") -> المتوسط 18.70 ر.س.‏ | H11: =SUBTOTAL(109,AttendeeSummary[الإجمالي]) -> 1490.69 ر.س.‏
B12: الوقت
B13: من الساعة 2 م حتى 4 م
B15: الموقع | D15: ملخص الميزانية
B16: منزل العمة جاكلين | D16: العنصر | E16: العدد | F16: مبلغ الميزانية | G16: إجمالي التكلفة | H16: الفرق
D17: الأطعمة والمشروبات | E17: =COUNTA(FoodTable[عنصر الأطعمة أو المشروبات]) -> 18 | F17: 500.00 ر.س.‏ | G17: =FoodTable[[#Totals],[إجمالي التكلفة]] -> 475.00 ر.س.‏ | H17: =BudgetOverview[[#This Row],[مبلغ الميزانية]]-BudgetOverview[[#This Row],[إجمالي التكلفة]] -> 25.00 ر.س.‏
D18: =Table1Header -> المعدات والتجهيزات | E18: =COUNTA(Table1Budget[المعدات والتجهيزات]) -> 7 | F18: 400.00 ر.س.‏ | G18: =Table1Budget[[#Totals],[التكلفة]] -> 400.00 ر.س.‏ | H18: =BudgetOverview[[#This Row],[مبلغ الميزانية]]-BudgetOverview[[#This Row],[إجمالي التكلفة]] -> 0.00 ر.س.‏
D19: =Table2Header -> الزخارف | E19: 4 | F19: 150.00 ر.س.‏ | G19: =Table2Budget[[#Totals],[التكلفة]] -> 175.00 ر.س.‏ | H19: =BudgetOverview[[#This Row],[مبلغ الميزانية]]-BudgetOverview[[#This Row],[إجمالي التكلفة]] -> ( 25.00 ر.س.‏)
D20: =Table3Header -> غير ذلك | E20: =COUNTA(Table3Budget[غير ذلك]) -> 4 | F20: 300.00 ر.س.‏ | G20: =Table3Budget[[#Totals],[التكلفة]] -> 285.00 ر.س.‏ | H20: =BudgetOverview[[#This Row],[مبلغ الميزانية]]-BudgetOverview[[#This Row],[إجمالي التكلفة]] -> 15.00 ر.س.‏
D21: الإجمالي | E21: =SUBTOTAL(109,E17:E20) -> 33 | F21: =SUBTOTAL(109,BudgetOverview[مبلغ الميزانية]) -> 1350.00 ر.س.‏ | G21: =SUBTOTAL(109,BudgetOverview[إجمالي التكلفة]) -> 1335.00 ر.س.‏ | H21: =BudgetOverview[[#Totals],[مبلغ الميزانية]]-BudgetOverview[[#Totals],[إجمالي التكلفة]] -> 15.00 ر.س.‏

Sheet قائمة الضيوف
B3: قائمة الضيوف
B7: الاسم | C7: العنوان | D7: المدينة | E7: الولاية | F7: الرمز البريدي | G7: الهاتف | H7: البريد الإلكتروني | I7: هل ستحضر؟ | J7: الأطفال | K7: البالغون | L7: الإجمالي
B8: الأسرة 1 | C8: العنوان 1 | D8: المدينة 1 | E8: الولاية 1 | F8: الرمز البريدي 1 | G8: الهاتف 1 | H8: البريد الإلكتروني 1 | I8: لا | J8: 2 | K8: 2 | L8: =SUM(GuestTable[[#This Row],[الأطفال]:[البالغون]]) -> 4
B9: الأسرة 2 | C9: العنوان 2 | D9: المدينة 2 | E9: الولاية 2 | F9: الرمز البريدي 2 | G9: الهاتف 2 | H9: البريد الإلكتروني 2 | I9: نعم | J9: 1 | K9: 1 | L9: =SUM(GuestTable[[#This Row],[الأطفال]:[البالغون]]) -> 2
B10: الأسرة 3 | C10: العنوان 3 | D10: المدينة 3 | E10: الولاية 3 | F10: الرمز البريدي 3 | G10: الهاتف 3 | H10: البريد الإلكتروني 3 | I10: نعم | J10: 3 | K10: 3 | L10: =SUM(GuestTable[[#This Row],[الأطفال]:[البالغون]]) -> 6
B11: الأسرة 4 | C11: العنوان 4 | D11: المدينة 4 | E11: الولاية 4 | F11: الرمز البريدي 4 | G11: الهاتف 4 | H11: البريد الإلكتروني 4 | K11: 2 | L11: =SUM(GuestTable[[#This Row],[الأطفال]:[البالغون]]) -> 2
B12: الأسرة 5 | C12: العنوان 5 | D12: المدينة 5 | E12: الولاية 5 | F12: الرمز البريدي 5 | G12: الهاتف 5 | H12: البريد الإلكتروني 5 | I12: نعم | J12: 4 | K12: 3 | L12: =SUM(GuestTable[[#This Row],[الأطفال]:[البالغون]]) -> 7
B13: الأسرة 6 | C13: العنوان 6 | D13: المدينة 6 | E13: الولاية 6 | F13: الرمز البريدي 6 | G13: الهاتف 6 | H13: البريد الإلكتروني 6 | I13: نعم | J13: 2 | K13: 2 | L13: =SUM(GuestTable[[#This Row],[الأطفال]:[البالغون]]) -> 4
B14: الأسرة 7 | C14: العنوان 7 | D14: المدينة 7 | E14: الولاية 7 | F14: الرمز البريدي 7 | G14: الهاتف 7 | H14: البريد الإلكتروني 7 | I14: نعم | J14: 1 | K14: 4 | L14: =SUM(GuestTable[[#This Row],[الأطفال]:[البالغون]]) -> 5
B15: الأسرة 8 | C15: العنوان 8 | D15: المدينة 8 | E15: الولاية 8 | F15: الرمز البريدي 8 | G15: الهاتف 8 | H15: البريد الإلكتروني 8 | I15: لا | J15: 5 | K15: 3 | L15: =SUM(GuestTable[[#This Row],[الأطفال]:[البالغون]]) -> 8
B16: الأسرة 9 | C16: العنوان 9 | D16: المدينة 9 | E16: الولاية 9 | F16: الرمز البريدي 9 | G16: الهاتف 9 | H16: البريد الإلكتروني 9 | I16: نعم | J16: 3 | K16: 2 | L16: =SUM(GuestTable[[#This Row],[الأطفال]:[البالغون]]) -> 5
B17: الأسرة 10 | C17: العنوان 10 | D17: المدينة 10 | E17: الولاية 10 | F17: الرمز البريدي 10 | G17: الهاتف 10 | H17: البريد الإلكتروني 10 | I17: نعم | K17: 4 | L17: =SUM(GuestTable[[#This Row],[الأطفال]:[البالغون]]) -> 4
B18: الأسرة 11 | C18: العنوان 11 | D18: المدينة 11 | E18: الولاية 11 | F18: الرمز البريدي 11 | G18: الهاتف 11 | H18: البريد الإلكتروني 11 | I18: نعم | J18: 3 | K18: 5 | L18: =SUM(GuestTable[[#This Row],[الأطفال]:[البالغون]]) -> 8
B19: الأسرة 12 | C19: العنوان 12 | D19: المدينة 12 | E19: الولاية 12 | F19: الرمز البريدي 12 | G19: الهاتف 12 | H19: البريد الإلكتروني 12 | I19: لا | J19: 2 | K19: 3 | L19: =SUM(GuestTable[[#This Row],[الأطفال]:[البالغون]]) -> 5
B20: الأسرة 13 | C20: العنوان 13 | D20: المدينة 13 | E20: الولاية 13 | F20: الرمز البريدي 13 | G20: الهاتف 13 | H20: البريد الإلكتروني 13 | I20: نعم | J20: 3 | K20: 2 | L20: =SUM(GuestTable[[#This Row],[الأطفال]:[البالغون]]) -> 5
B21: الأسرة 14 | C21: العنوان 14 | D21: المدينة 14 | E21: الولاية 14 | F21: الرمز البريدي 14 | G21: الهاتف 14 | H21: البريد الإلكتروني 14 | I21: لا | K21: 1 | L21: =SUM(GuestTable[[#This Row],[الأطفال]:[البالغون]]) -> 1
B22: الأسرة 15 | C22: العنوان 15 | D22: المدينة 15 | E22: الولاية 15 | F22: الرمز البريدي 15 | G22: الهاتف 15 | H22: البريد الإلكتروني 15 | K22: 2 | L22: =SUM(GuestTable[[#This Row],[الأطفال]:[البالغون]]) -> 2

Sheet الأطعمة والمشروبات
B3: الأطعمة والمشروبات
B5: أدخل التكلفة والوجبات المقدرة لحساب إجمالي عدد قطع الوجبة وتكلفتها تلقائياً استناداً إلى إجمالي عدد الحضور
B6: عنصر الأطعمة أو المشروبات | C6: إجمالي التكلفة | D6: وجبة الطفل | E6: وجبة البالغ | F6: إجمالي الوجبات | G6: تكلفة الوجبة | H6: تكلفة الطفل | I6: تكلفة البالغ | J6: ملاحظات
B7: صودا | C7: ر.س.‏ 15.00 | D7: 0.5 | E7: 2 | F7: =(FoodTable[[#This Row],[وجبة الطفل]]*ChildrenTotal)+(FoodTable[[#This Row],[وجبة البالغ]]*AdultTotal) -> 62 | G7: =IFERROR(FoodTable[[#This Row],[إجمالي التكلفة]]/FoodTable[[#This Row],[إجمالي الوجبات]],"") -> ر.س.‏ 0.24 | H7: =IFERROR(FoodTable[[#This Row],[تكلفة الوجبة]]*FoodTable[[#This Row],[وجبة الطفل]],"") -> ر.س.‏ 0.12 | I7: =IFERROR(FoodTable[[#This Row],[تكلفة الوجبة]]*FoodTable[[#This Row],[وجبة البالغ]],"") -> ر.س.‏ 0.48 | J7: زجاجات 2 لتر
B8: علب العصير | C8: ر.س.‏ 15.00 | D8: 2 | E8: 0 | F8: =(FoodTable[[#This Row],[وجبة الطفل]]*ChildrenTotal)+(FoodTable[[#This Row],[وجبة البالغ]]*AdultTotal) -> 40 | G8: =IFERROR(FoodTable[[#This Row],[إجمالي التكلفة]]/FoodTable[[#This Row],[إجمالي الوجبات]],"") -> ر.س.‏ 0.38 | H8: =IFERROR(FoodTable[[#This Row],[تكلفة الوجبة]]*FoodTable[[#This Row],[وجبة الطفل]],"") -> ر.س.‏ 0.75 | I8: =IFERROR(FoodTable[[#This Row],[تكلفة الوجبة]]*FoodTable[[#This Row],[وجبة البالغ]],"") -> ر.س.‏ 0.00 | J8: التفاح والعنب الأبيض
B9: مشروبات | C9: ر.س.‏ 50.00 | D9: 0 | E9: 2 | F9: =(FoodTable[[#This Row],[وجبة الطفل]]*ChildrenTotal)+(FoodTable[[#This Row],[وجبة البالغ]]*AdultTotal) -> 52 | G9: =IFERROR(FoodTable[[#This Row],[إجمالي التكلفة]]/FoodTable[[#This Row],[إجمالي الوجبات]],"") -> ر.س.‏ 0.96 | H9: =IFERROR(FoodTable[[#This Row],[تكلفة الوجبة]]*FoodTable[[#This Row],[وجبة الطفل]],"") -> ر.س.‏ 0.00 | I9: =IFERROR(FoodTable[[#This Row],[تكلفة الوجبة]]*FoodTable[[#This Row],[وجبة البالغ]],"") -> ر.س.‏ 1.92
B10: كعكة | C10: ر.س.‏ 75.00 | D10: 1 | E10: 1 | F10: =(FoodTable[[#This Row],[وجبة الطفل]]*ChildrenTotal)+(FoodTable[[#This Row],[وجبة البالغ]]*AdultTotal) -> 46 | G10: =IFERROR(FoodTable[[#This Row],[إجمالي التكلفة]]/FoodTable[[#This Row],[إجمالي الوجبات]],"") -> ر.س.‏ 1.63 | H10: =IFERROR(FoodTable[[#This Row],[تكلفة الوجبة]]*FoodTable[[#This Row],[وجبة الطفل]],"") -> ر.س.‏ 1.63 | I10: =IFERROR(FoodTable[[#This Row],[تكلفة الوجبة]]*FoodTable[[#This Row],[وجبة البالغ]],"") -> ر.س.‏ 1.63 | J10: الطلب من مخبر محلي
B11: أيس كريم | C11: ر.س.‏ 20.00 | D11: 1 | E11: 1.5 | F11: =(FoodTable[[#This Row],[وجبة الطفل]]*ChildrenTotal)+(FoodTable[[#This Row],[وجبة البالغ]]*AdultTotal) -> 59 | G11: =IFERROR(FoodTable[[#This Row],[إجمالي التكلفة]]/FoodTable[[#This Row],[إجمالي الوجبات]],"") -> ر.س.‏ 0.34 | H11: =IFERROR(FoodTable[[#This Row],[تكلفة الوجبة]]*FoodTable[[#This Row],[وجبة الطفل]],"") -> ر.س.‏ 0.34 | I11: =IFERROR(FoodTable[[#This Row],[تكلفة الوجبة]]*FoodTable[[#This Row],[وجبة البالغ]],"") -> ر.س.‏ 0.51
B12: أكواب البودنغ | C12: ر.س.‏ 15.00 | D12: 1 | E12: 0 | F12: =(FoodTable[[#This Row],[وجبة الطفل]]*ChildrenTotal)+(FoodTable[[#This Row],[وجبة البالغ]]*AdultTotal) -> 20 | G12: =IFERROR(FoodTable[[#This Row],[إجمالي التكلفة]]/FoodTable[[#This Row],[إجمالي الوجبات]],"") -> ر.س.‏ 0.75 | H12: =IFERROR(FoodTable[[#This Row],[تكلفة الوجبة]]*FoodTable[[#This Row],[وجبة الطفل]],"") -> ر.س.‏ 0.75 | I12: =IFERROR(FoodTable[[#This Row],[تكلفة الوجبة]]*FoodTable[[#This Row],[وجبة البالغ]],"") -> ر.س.‏ 0.00 | J12: شراء الأكواب المعلبة: الفانيليا والشكولاتة
B13: فطر محشو | C13: ر.س.‏ 32.00 | D13: 1 | E13: 2 | F13: =(FoodTable[[#This Row],[وجبة الطفل]]*ChildrenTotal)+(FoodTable[[#This Row],[وجبة البالغ]]*AdultTotal) -> 72 | G13: =IFERROR(FoodTable[[#This Row],[إجمالي التكلفة]]/FoodTable[[#This Row],[إجمالي الوجبات]],"") -> ر.س.‏ 0.44 | H13: =IFERROR(FoodTable[[#This Row],[تكلفة الوجبة]]*FoodTable[[#This Row],[وجبة الطفل]],"") -> ر.س.‏ 0.44 | I13: =IFERROR(FoodTable[[#This Row],[تكلفة الوجبة]]*FoodTable[[#This Row],[وجبة البالغ]],"") -> ر.س.‏ 0.89 | J13: شطيرة الفطر المحشو بالجبن والنقانق
B14: فطائر | C14: ر.س.‏ 22.00 | D14: 0 | E14: 3 | F14: =(FoodTable[[#This Row],[وجبة الطفل]]*ChildrenTotal)+(FoodTable[[#This Row],[وجبة البالغ]]*AdultTotal) -> 78 | G14: =IFERROR(FoodTable[[#This Row],[إجمالي التكلفة]]/FoodTable[[#This Row],[إجمالي الوجبات]],"") -> ر.س.‏ 0.28 | H14: =IFERROR(FoodTable[[#This Row],[تكلفة الوجبة]]*FoodTable[[#This Row],[وجبة الطفل]],"") -> ر.س.‏ 0.00 | I14: =IFERROR(FoodTable[[#This Row],[تكلفة الوجبة]]*FoodTable[[#This Row],[وجبة البالغ]],"") -> ر.س.‏ 0.85 | J14: الطماطم والريحان
B15: سلمون مدخن | C15: ر.س.‏ 50.00 | D15: 1 | E15: 2 | F15: =(FoodTable[[#This Row],[وجبة الطفل]]*ChildrenTotal)+(FoodTable[[#This Row],[وجبة البالغ]]*AdultTotal) -> 72 | G15: =IFERROR(FoodTable[[#This Row],[إجمالي التكلفة]]/FoodTable[[#This Row],[إجمالي الوجبات]],"") -> ر.س.‏ 0.69 | H15: =IFERROR(FoodTable[[#This Row],[تكلفة الوجبة]]*FoodTable[[#This Row],[وجبة الطفل]],"") -> ر.س.‏ 0.69 | I15: =IFERROR(FoodTable[[#This Row],[تكلفة الوجبة]]*FoodTable[[#This Row],[وجبة البالغ]],"") -> ر.س.‏ 1.39
B16: الكعك الصغير | C16: ر.س.‏ 20.00 | D16: 1 | E16: 2 | F16: =(FoodTable[[#This Row],[وجبة الطفل]]*ChildrenTotal)+(FoodTable[[#This Row],[وجبة البالغ]]*AdultTotal) -> 72 | G16: =IFERROR(FoodTable[[#This Row],[إجمالي التكلفة]]/FoodTable[[#This Row],[إجمالي الوجبات]],"") -> ر.س.‏ 0.28 | H16: =IFERROR(FoodTable[[#This Row],[تكلفة الوجبة]]*FoodTable[[#This Row],[وجبة الطفل]],"") -> ر.س.‏ 0.28 | I16: =IFERROR(FoodTable[[#This Row],[تكلفة الوجبة]]*FoodTable[[#This Row],[وجبة البالغ]],"") -> ر.س.‏ 0.56 | J16: 4 أكياس ـ متنوعة
B17: جبن الكريمة | C17: ر.س.‏ 10.00 | D17: 1 | E17: 2 | F17: =(FoodTable[[#This Row],[وجبة الطفل]]*ChildrenTotal)+(FoodTable[[#This Row],[وجبة البالغ]]*AdultTotal) -> 72 | G17: =IFERROR(FoodTable[[#This Row],[إجمالي التكلفة]]/FoodTable[[#This Row],[إجمالي الوجبات]],"") -> ر.س.‏ 0.14 | H17: =IFERROR(FoodTable[[#This Row],[تكلفة الوجبة]]*FoodTable[[#This Row],[وجبة الطفل]],"") -> ر.س.‏ 0.14 | I17: =IFERROR(FoodTable[[#This Row],[تكلفة الوجبة]]*FoodTable[[#This Row],[وجبة البالغ]],"") -> ر.س.‏ 0.28 | J17: أنبوبان كبيران
B18: نبات الكبر | C18: ر.س.‏ 12.00 | D18: 1 | E18: 2 | F18: =(FoodTable[[#This Row],[وجبة الطفل]]*ChildrenTotal)+(FoodTable[[#This Row],[وجبة البالغ]]*AdultTotal) -> 72 | G18: =IFERROR(FoodTable[[#This Row],[إجمالي التكلفة]]/FoodTable[[#This Row],[إجمالي الوجبات]],"") -> ر.س.‏ 0.17 | H18: =IFERROR(FoodTable[[#This Row],[تكلفة الوجبة]]*FoodTable[[#This Row],[وجبة الطفل]],"") -> ر.س.‏ 0.17 | I18: =IFERROR(FoodTable[[#This Row],[تكلفة الوجبة]]*FoodTable[[#This Row],[وجبة البالغ]],"") -> ر.س.‏ 0.33 | J18: 3 مرطبانات
B19: أجنحة الدجاج | C19: ر.س.‏ 45.00 | D19: 2 | E19: 4 | F19: =(FoodTable[[#This Row],[وجبة الطفل]]*ChildrenTotal)+(FoodTable[[#This Row],[وجبة البالغ]]*AdultTotal) -> 144 | G19: =IFERROR(FoodTable[[#This Row],[إجمالي التكلفة]]/FoodTable[[#This Row],[إجمالي الوجبات]],"") -> ر.س.‏ 0.31 | H19: =IFERROR(FoodTable[[#This Row],[تكلفة الوجبة]]*FoodTable[[#This Row],[وجبة الطفل]],"") -> ر.س.‏ 0.63 | I19: =IFERROR(FoodTable[[#This Row],[تكلفة الوجبة]]*FoodTable[[#This Row],[وجبة البالغ]],"") -> ر.س.‏ 1.25 | J19: الشراء من متجر محلي لبيع الأجنحة
B20: حمص | C20: ر.س.‏ 10.00 | D20: 4 | E20: 6 | F20: =(FoodTable[[#This Row],[وجبة الطفل]]*ChildrenTotal)+(FoodTable[[#This Row],[وجبة البالغ]]*AdultTotal) -> 236 | G20: =IFERROR(FoodTable[[#This Row],[إجمالي التكلفة]]/FoodTable[[#This Row],[إجمالي الوجبات]],"") -> ر.س.‏ 0.04 | H20: =IFERROR(FoodTable[[#This Row],[تكلفة الوجبة]]*FoodTable[[#This Row],[وجبة الطفل]],"") -> ر.س.‏ 0.17 | I20: =IFERROR(FoodTable[[#This Row],[تكلفة الوجبة]]*FoodTable[[#This Row],[وجبة البالغ]],"") -> ر.س.‏ 0.25 | J20: التحضير في الليلة السابقة
B21: رقائق الخبر بالجبن البارميزان | C21: ر.س.‏ 14.00 | D21: 4 | E21: 6 | F21: =(FoodTable[[#This Row],[وجبة الطفل]]*ChildrenTotal)+(FoodTable[[#This Row],[وجبة البالغ]]*AdultTotal) -> 236 | G21: =IFERROR(FoodTable[[#This Row],[إجمالي التكلفة]]/FoodTable[[#This Row],[إجمالي الوجبات]],"") -> ر.س.‏ 0.06 | H21: =IFERROR(FoodTable[[#This Row],[تكلفة الوجبة]]*FoodTable[[#This Row],[وجبة الطفل]],"") -> ر.س.‏ 0.24 | I21: =IFERROR(FoodTable[[#This Row],[تكلفة الوجبة]]*FoodTable[[#This Row],[وجبة البالغ]],"") -> ر.س.‏ 0.36 | J21: التحضير في الليلة السابقة
B22: خضروات متنوعة | C22: ر.س.‏ 30.00 | D22: 4 | E22: 10 | F22: =(FoodTable[[#This Row],[وجبة الطفل]]*ChildrenTotal)+(FoodTable[[#This Row],[وجبة البالغ]]*AdultTotal) -> 340 | G22: =IFERROR(FoodTable[[#This Row],[إجمالي التكلفة]]/FoodTable[[#This Row],[إجمالي الوجبات]],"") -> ر.س.‏ 0.09 | H22: =IFERROR(FoodTable[[#This Row],[تكلفة الوجبة]]*FoodTable[[#This Row],[وجبة الطفل]],"") -> ر.س.‏ 0.35 | I22: =IFERROR(FoodTable[[#This Row],[تكلفة الوجبة]]*FoodTable[[#This Row],[وجبة البالغ]],"") -> ر.س.‏ 0.88 | J22: الجزر والكرفس والبروكلي والقرنبيط والفلفل الأحمر والأخضر
B23: كرة الجبن | C23: ر.س.‏ 15.00 | D23: 5 | E23: 10 | F23: =(FoodTable[[#This Row],[وجبة الطفل]]*ChildrenTotal)+(FoodTable[[#This Row],[وجبة البالغ]]*AdultTotal) -> 360 | G23: =IFERROR(FoodTable[[#This Row],[إجمالي التكلفة]]/FoodTable[[#This Row],[إجمالي الوجبات]],"") -> ر.س.‏ 0.04 | H23: =IFERROR(FoodTable[[#This Row],[تكلفة الوجبة]]*FoodTable[[#This Row],[وجبة الطفل]],"") -> ر.س.‏ 0.21 | I23: =IFERROR(FoodTable[[#This Row],[تكلفة الوجبة]]*FoodTable[[#This Row],[وجبة البالغ]],"") -> ر.س.‏ 0.42 | J23: متنوع: جبن الكريمة والجبن اللاذع بالمكسرات
B24: الرقائق | C24: ر.س.‏ 25.00 | D24: 5 | E24: 10 | F24: =(FoodTable[[#This Row],[وجبة الطفل]]*ChildrenTotal)+(FoodTable[[#This Row],[وجبة البالغ]]*AdultTotal) -> 360 | G24: =IFERROR(FoodTable[[#This Row],[إجمالي التكلفة]]/FoodTable[[#This Row],[إجمالي الوجبات]],"") -> ر.س.‏ 0.07 | H24: =IFERROR(FoodTable[[#This Row],[تكلفة الوجبة]]*FoodTable[[#This Row],[وجبة الطفل]],"") -> ر.س.‏ 0.35 | I24: =IFERROR(FoodTable[[#This Row],[تكلفة الوجبة]]*FoodTable[[#This Row],[وجبة البالغ]],"") -> ر.س.‏ 0.69 | J24: متنوعة
B25: الإجمالي | C25: =SUBTOTAL(109,FoodTable[إجمالي التكلفة]) -> ر.س.‏ 475.00 | D25: =SUBTOTAL(109,FoodTable[وجبة الطفل]) -> 34.5 | E25: =SUBTOTAL(109,FoodTable[وجبة البالغ]) -> 65.5 | F25: =SUBTOTAL(109,FoodTable[إجمالي الوجبات]) -> 2393 | G25: =SUBTOTAL(109,FoodTable[تكلفة الوجبة]) -> ر.س.‏ 6.92 | H25: =SUBTOTAL(109,FoodTable[تكلفة الطفل]) -> ر.س.‏ 7.25 | I25: =SUBTOTAL(109,FoodTable[تكلفة البالغ]) -> ر.س.‏ 12.69

Sheet الأساسيات الأخرى
B3: الأساسيات الأخرى
B6: المعدات والتجهيزات | C6: التكلفة | D6: مُشترى | E6: ملاحظات
B7: تأجير الغرف/القاعات | C7: 250.00 ر.س.‏ | D7: نعم
B8: مفارش الموائد | C8: 30.00 ر.س.‏ | D8: نعم | E8: الإيجار
B9: الطاولات والكراسي | C9: 0.00 ر.س.‏ | E9: متضمنة في إيجار القاعة
B10: مناديل | C10: 25.00 ر.س.‏
B11: مناديل السفرة | C11: 20.00 ر.س.‏ | E11: الإيجار
B12: موظف الخدمة | C12: 50.00 ر.س.‏ | E12: الإيجار
B13: آنية زجاجية | C13: 25.00 ر.س.‏ | E13: الإيجار
B14: الإجمالي | C14: =SUBTOTAL(109,Table1Budget[التكلفة]) -> 400.00 ر.س.‏
B17: الزخارف | C17: التكلفة | D17: مُشترى | E17: ملاحظات
B18: بالونات | C18: 25.00 ر.س.‏
B19: خزان الهليوم | C19: 50.00 ر.س.‏ | E19: الإيجار
B20: قطع تزين وسط الطاولة | C20: 100.00 ر.س.‏ | D20: نعم | E20: إجمالي 10
B21: مزهريات زجاجية | C21: 0.00 ر.س.‏ | E21: الاستعارة من جاكلين
B22: الإجمالي | C22: =SUBTOTAL(109,Table2Budget[التكلفة]) -> 175.00 ر.س.‏
B25: غير ذلك | C25: التكلفة | D25: مُشترى | E25: ملاحظات
B26: دعوات | C26: 50.00 ر.س.‏ | D26: نعم
B27: البريد | C27: 60.00 ر.س.‏ | D27: نعم
B28: مصور | C28: 125.00 ر.س.‏ | E28: ساعتان (2 م ـ 4 م)
B29: هدايا الحفل | C29: 50.00 ر.س.‏
B30: الإجمالي | C30: =SUBTOTAL(109,Table3Budget[التكلفة]) -> 285.00 ر.س.‏

Sheet شبكة ترتيب الجلوس
A1: ترتيب الجلوس
AH35: *1 مربع = 1 قدم مربع تقريباً
A36: ملاحظات | T36: =" إجمالي الضيوف المؤكدين: "&ConfirmedGuests -> إجمالي الضيوف المؤكدين: 46
T37: يمكنك استخدام أي ترتيب من ترتيبات الطاولات التالية:
U38: =ROUNDUP(ConfirmedGuests/6,0)&" طاولات دائرية 54 بوصة (6 مقاعد)" -> 8 طاولات دائرية 54 بوصة (6 مقاعد)
U39: =ROUNDUP(ConfirmedGuests/8,0) &"طاولات دائرية 60 بوصة (8 مقاعد)" -> 6طاولات دائرية 60 بوصة (8 مقاعد)
U40: =ROUNDUP(ConfirmedGuests/10,0)&" طاولات دائرية 72 بوصة (10 مقاعد)" -> 5 طاولات دائرية 72 بوصة (10 مقاعد)
U41: =ROUNDUP(ConfirmedGuests/6,0)& "طاولات مربعة 30 بوصة × 72 بوصة (6 مقاعد)" -> 8طاولات مربعة 30 بوصة × 72 بوصة (6 مقاعد)
U42: =ROUNDUP(ConfirmedGuests/8,0)&" طاولات مربعة 30 بوصة × 96 بوصة (8 مقاعد)" -> 6 طاولات مربعة 30 بوصة × 96 بوصة (8 مقاعد)
T43: (المساحة المفضلة بين الطاولات: 42 بوصة)
